Cogmind - Beta 15 @@@ ROGUE MODE // 2025.05.18 @ 12:39:09 Player: Terminus Result: Self-destructed Performance ------------- Evolutions (2) 1000 Regions Visited (3) 600 Robots Destroyed (42) 210 Value Destroyed (1119) 1119 Prototype IDs (0) 0 Alien Tech Used (0) 0 Bonus (0) 0 TOTAL SCORE: 2929 Bonus ------- None Cogmind --------- Core Integrity 550/550 Matter 292/300 Energy 250/250 System Corruption 0% Temperature Cool (0) Movement Rolling (130) Ox2 Location -8/Materials Parts ------- > --- POWER (1) -------- Ion Engine > --- PROPULSION (3) --- Light Treads Subdweller Monowheel > --- UTILITY (4) ------ High-capacity Storage Unit Makeshift Light Armor Plating > --- WEAPON (3) ------- Improved Light Cannon Improved Light Cannon > --- INVENTORY (20) --- Ion Engine Subdweller Monowheel Subdweller Monowheel Cooling System Cooling System Cooling System Large Storage Unit Huge Storage Unit High-capacity Matter Pod (200) Makeshift Kinetic Plating Hacking Suite Autogun Autogun Autogun Autogun Subdweller Machine Gun Subdweller Machine Gun Improved Light Cannon Makeshift Hammer Peak State ------------ > --- POWER ------------ Ion Engine > --- PROPULSION ------- Light Treads Subdweller Monowheel > --- UTILITY ---------- High-capacity Storage Unit Makeshift Light Armor Plating > --- WEAPON ----------- Improved Light Cannon Improved Light Cannon > --- INVENTORY -------- Ion Engine Light Treads Subdweller Monowheel Improved Heat Sink Cooling System Cooling System Cooling System Large Storage Unit Huge Storage Unit High-capacity Matter Pod Hacking Suite Small Laser Small Laser Subdweller Beam Cannon Light Assault Rifle Autogun Autogun Autogun Autogun Improved Light Cannon [Rating: 16] Favorites ----------- Power Ion Engine Engine Ion Engine Propulsion Light Treads Treads Light Treads Wheel Subdweller Monowheel Utility High-capacity Storage Unit Device Heat Sink Storage High-capacity Storage Unit Protection Makeshift Light Armor Plating Weapon Improved Light Cannon Energy Cannon Subdweller Beam Cannon Ballistic Gun Light Assault Rifle Ballistic Cannon Improved Light Cannon Build | -11 -10 -10 -8 ------- Run | Yrd Mat Sub Mat Slots Evolved 4 | . . . 4 Power . | . . . . Propulsion 1 | . . . 1 Utility 2 | . . . 2 Weapon 1 | . . . 1 Parts Attached 23 | 6 9 8 . Power 3 | 1 2 . . Engine 3 | 1 2 . . Core . | . . . . Reactor . | . . . . Propulsion 7 | 2 . 5 . Treads 4 | 2 . 2 . Leg . | . . . . Wheel 3 | . . 3 . Hover . | . . . . Flight . | . . . . Utility 6 | 1 4 1 . Device 3 | . 3 . . Storage 2 | 1 1 . . Processor . | . . . . Hackware . | . . . . Protection 1 | . . 1 . Artifact . | . . . . Weapon 7 | 2 3 2 . Energy Gun . | . . . . Energy Cannon 1 | . . 1 . Ballistic Gun 3 | 2 1 . . Ballistic Cannon 3 | . 2 1 . Launcher . | . . . . Special Weapon . | . . . . Impact Weapon . | . . . . Slashing Weapon . | . . . . Piercing Weapon . | . . . . Special Melee Weapon . | . . . . Unidentified Prototypes . | . . . . Parts Lost 7 | . 2 5 . Power . | . . . . Propulsion 4 | . . 4 . Utility 1 | . 1 . . Weapon 2 | . 1 1 . Highest Loss Streak 2 | . 1 2 . To Critical Strikes . | . . . . Average Backups 15 | 1 12 19 . Power . | . 1 1 . Propulsion 1 | . 1 2 . Utility 6 | . 4 8 . Weapon 6 | . 5 8 . Tool/Special . | . . . . Unused Backups 22 | . 1 3 18 Power 1 | . . . 1 Propulsion 1 | . . . 1 Utility 9 | . 1 . 8 Weapon 11 | . . 3 8 Tool/Special . | . . . . Average Slot Usage (%) 98 | . 97 99 . Engine 14 | . 14 14 . Treads 25 | . 28 23 . Wheel 2 | . . 4 . Device 7 | . 10 3 . Storage 14 | . 14 14 . Protection 5 | . 1 10 . Ballistic Gun 8 | . 15 . . Ballistic Cannon 18 | . 12 26 . Peak Build Rating 16 | 6 14 16 . Average Rating 12 | 5 9 15 . On Entrance 9 | . 6 14 16 Naked Turns . | . . . . Heaviest Build 61 | 13 54 61 . Greatest Support 40 | 40 40 40 . Greatest Overweight (x) 4 | 4 1 3 . Average Overweight (x) 1 | . . 1 . Largest Inventory Capacity 20 | 8 20 20 . Average Capacity 19 | 7 19 20 . Most Carried 20 | 2 20 20 . Average Carried 15 | 1 12 19 . Final Capacity 20 | 8 20 20 20 Final Carried 20 | 2 20 19 19 Class Distribution -------------------- 100% | Mutant Dominant Class ---------------- Mutant | -10/Materials Mutant | -10/Subcaves Mutant | -8/Materials Resources | -11 -10 -10 -8 ----------- Run | Yrd Mat Sub Mat Matter Collected 1698 | 209 920 569 . Remotely . | . . . . Salvage Created 1304 | . 999 305 . Parts 87 | . 68 19 . Haulers Intercepted 2 | . 2 . . Recyclers Shooed 8 | . 8 . . Parts Field Recycled . | . . . . Retrieved Matter . | . . . . Parts Self-Destructed 4 | . . 4 . Prevented . | . . . . Kills | -11 -10 -10 -8 ------- Run | Yrd Mat Sub Mat Combat Hostiles Destroyed 30 | . 17 13 . Melee 1 | . 1 . . Guns 12 | . 12 . . Cannons 17 | . 4 13 . Classes Destroyed 10 | . 8 2 . Builder 2 | . 2 . . Tunneler 1 | . 1 . . Hauler 2 | . 2 . . Recycler 3 | . 3 . . Operator 1 | . 1 . . Watcher 3 | . 3 . . Swarmer 5 | . 3 2 . Grunt 16 | . 14 2 . Artisan 1 | . . 1 . Subdweller 9 | . . 9 . Best Kill Streak 6 | . 6 2 . Combat Bots Only 6 | . 6 2 . Max Kills in Single Turn 1 | . 1 1 . Gunslinging . | . . . . Exploded . | . . . . Melee 1 | . 1 . . Uniques/NPCs Destroyed . | . . . . Combat | -11 -10 -10 -8 -------- Run | Yrd Mat Sub Mat Hostile Shots Fired 144 | . 72 72 . Missed 37 | . 14 23 . Hits 107 | . 58 49 . Projectile 107 | . 58 49 . Critical Strikes 2 | . . 2 . Damage Taken 1590 | . 677 913 . Core 217 | . 136 81 . Absorbed by Shields . | . . . . Core Remaining (%) 56 | 100 . 13 . Volleys Fired 156 | . 94 62 . Largest 2 | . 2 2 . Hottest 80 | . 66 80 . Shots Fired 300 | . 188 112 . Gun 148 | . 148 . . Cannon 152 | . 40 112 . Launcher . | . . . . Special . | . . . . Kinetic 291 | . 188 103 . Thermal 9 | . . 9 . Explosive . | . . . . Electromagnetic . | . . . . Robot Hit Streak 25 | . 18 25 . Robot Miss Streak 8 | . 8 3 . Penetration Max . | . . . . Secondary Targets 3 | . 3 . . Max Gunslinging Chain 1 | . 1 . . Shots Hit Robots 187 | . 120 67 . Core Hits 70 | . 49 21 . Critical Kills . | . . . . Critical Parts Destroyed . | . . . . Critical Strikes 6 | . 1 5 . Blast 6 | . 1 5 . Melee Attacks . | . . . . Impact . | . . . . Slashing . | . . . . Piercing . | . . . . Sneak Attacks . | . . . . Combat Hostiles . | . . . . Follow-up Attacks . | . . . . Damage Inflicted 2991 | . 1504 1487 . Guns 1031 | . 1031 . . Cannons 1923 | . 436 1487 . Explosions . | . . . . Melee . | . . . . Ramming 37 | . 37 . . Kinetic 2759 | . 1467 1292 . Thermal 195 | . . 195 . Explosive . | . . . . Electromagnetic . | . . . . Impact . | . . . . Slashing . | . . . . Piercing . | . . . . Highest Corruption . | . . . . Average Corruption . | . . . . Corruption Purged . | . . . . Corruption Blocked . | . . . . Overload Shots . | . . . . Overflow Damage 76 | . 21 55 . Projectiles 76 | . 21 55 . Explosions . | . . . . Melee . | . . . . Knockbacks 21 | . 9 12 . Impact . | . . . . Kinetic 21 | . 9 12 . Secondary . | . . . . Self-Inflicted Damage . | . . . . Shots . | . . . . Rammed 4 | . 4 . . Targets Rammed 7 | . 7 . . Kicked . | . . . . Crushed 3 | . 3 . . Highest Temperature 67 | . 12 67 . Average Temperature 18 | . 6 30 . Received Heat Transfer 477 | . 357 120 . Siege Activations . | . . . . Martial Activations . | . . . . Shielding Activations . | . . . . Robots Disrupted . | . . . . Combat Hostiles . | . . . . Robots Corrupted . | . . . . Combat Hostiles . | . . . . Parts Fried . | . . . . Impact Corruptions . | . . . . Robots Melted . | . . . . Combat Hostiles . | . . . . Parts Melted 2 | . . 2 . Heat Transferred 259 | . . 259 . Parts Sabotaged . | . . . . Parts Stolen . | . . . . Parts Stripped . | . . . . Power Chain Reactions . | . . . . Alert | -11 -10 -10 -8 ------- Run | Yrd Mat Sub Mat Maximum Alert Level . | . . . . Low Security (%) 100 | 100 100 . . Level 1 . | . . . . Level 2 . | . . . . Level 3 . | . . . . Level 4 . | . . . . Level 5 . | . . . . High Security . | . . . . Max Security . | . . . . Peak Influence 162 | . 162 . . Initial 18 | . . . 18 Average 69 | . 71 . . Influence Increases 701 | . 601 100 . Destroy 0b10 Robot/C 420 | . 340 80 . Destroy 0b10 Robot/NC 60 | . 60 . . Destroy Leader 100 | . 80 20 . Successful Hack 43 | . 43 . . Select Force Hacks 30 | . 30 . . Disable Machine 15 | . 15 . . Destroy Structure 3 | . 3 . . Lose Combat Pursuer 30 | . 30 . . Influence Decreases 683 | . 517 149 17 Entered New Map 58 | . . 41 17 Time Decay 595 | . 497 98 . Lost Part 30 | . 20 10 . Squads Dispatched 4 | . 4 . . Investigation 3 | . 3 . . Extermination . | . . . . Reinforcement 1 | . 1 . . Assault . | . . . . Garrison . | . . . . Intercept . | . . . . Searches Triggered . | . . . . Construction Impeded . | . . . . Haulers Reinforced . | . . . . Active Scanning Responses . | . . . . Cargo Convoy Interrupts . | . . . . Stealth | -11 -10 -10 -8 --------- Run | Yrd Mat Sub Mat Distress Signals 2 | . 2 . . Communications Jammed . | . . . . Distress Signals . | . . . . Times Spotted 50 | . 36 14 . Peak Tracking Total 5 | . 5 2 . Tactical Retreats 2 | . 2 . . Traps | -11 -10 -10 -8 ------- Run | Yrd Mat Sub Mat Traps Triggered 1 | . 1 . . Indirectly . | . . . . Trap Hack Attempts . | . . . . Triggered . | . . . . Disarmed . | . . . . Reprogrammed . | . . . . Reused . | . . . . Traps Extracted . | . . . . Installed . | . . . . Triggered . | . . . . Machines | -11 -10 -10 -8 ---------- Run | Yrd Mat Sub Mat Machines Disabled 1 | . 1 . . Max in Single Turn 1 | . 1 . . Machines Repaired . | . . . . Machines Dismantled . | . . . . Machines Sabotaged . | . . . . Overloaded Fab Kills . | . . . . Hacking | -11 -10 -10 -8 --------- Run | Yrd Mat Sub Mat Machines Accessed 10 | . 10 . . Terminals 7 | . 7 . . Fabricators . | . . . . Repair Stations 1 | . 1 . . Recycling Units 2 | . 2 . . Scanalyzers . | . . . . Garrison Access . | . . . . Total Hacks 27 | . 27 . . Successful 14 | . 14 . . Failed 13 | . 13 . . Catastrophic 3 | . 3 . . Database Lockouts . | . . . . Manual 17 | . 17 . . Terminals 22 | . 22 . . Fabricators . | . . . . Repair Stations 2 | . 2 . . Recycling Units 3 | . 3 . . Scanalyzers . | . . . . Garrison Access . | . . . . Terminal Hacks 9 | . 9 . . Record 1 | . 1 . . Robot Analysis 5 | . 5 . . Branch Access Points 1 | . 1 . . Zone Layout 2 | . 2 . . Fabricator Hacks . | . . . . Repair Station Hacks 1 | . 1 . . Refit 1 | . 1 . . Recycling Unit Hacks 1 | . 1 . . Retrieve Components 1 | . 1 . . Scanalyzer . | . . . . Garrison Access Hacks . | . . . . Unauthorized Hacks 3 | . 3 . . Terminals 2 | . 2 . . Botnet 1 | . 1 . . Skim 1 | . 1 . . Fabricators . | . . . . Repair Stations . | . . . . Recycling Units 1 | . 1 . . Tunnel 1 | . 1 . . Scanalyzers . | . . . . Garrison Access . | . . . . Data Cores Recovered . | . . . . Used . | . . . . Hacking Detections 7 | . 7 . . Full Trace Events 2 | . 2 . . Feedback Events . | . . . . Feedback Blocked . | . . . . Robot Schematics Acquired . | . . . . Robots Built . | . . . . Authchips . | . . . . Time . | . . . . Total Robot Build Rating . | . . . . Part Schematics Acquired . | . . . . Parts Built . | . . . . Authchips . | . . . . Time . | . . . . Total Part Build Rating . | . . . . Parts Repaired . | . . . . Time . | . . . . Parts Recycled . | . . . . Recycled Matter . | . . . . Retrieved Matter . | . . . . Retrieved Components 9 | . 9 . . Parts Scanalyzed . | . . . . Part Schematics Acquired . | . . . . Parts Damaged . | . . . . Bothacking | -11 -10 -10 -8 ------------ Run | Yrd Mat Sub Mat Used RIF Installer . | . . . . Robots Hacked . | . . . . Non-combat . | . . . . Combat . | . . . . Robot Hacks Applied . | . . . . Relay Couplers Released . | . . . . Fabnet Peak Effective % . | . . . . Robots Rewired . | . . . . Allies Hacked . | . . . . Hacks Repelled . | . . . . Allies | -11 -10 -10 -8 -------- Run | Yrd Mat Sub Mat Total Allies . | . . . . Largest Group . | . . . . Highest-Rated Group . | . . . . Highest-Rated Ally . | . . . . Total Orders . | . . . . Ally Attacks . | . . . . Total Damage . | . . . . Kills . | . . . . Allies Corrupted . | . . . . Allies Melted . | . . . . Intel | -11 -10 -10 -8 ------- Run | Yrd Mat Sub Mat Active Infowar (turns) . | . . . . Robot Analysis Total 5 | . 5 . . Derelict Logs Recovered 1 | . . 1 . Drone Launches . | . . . . Drone Recoveries . | . . . . Exploration | -11 -10 -10 -8 ------------- Run | Yrd Mat Sub Mat Turns Passed 4063 | 60 2180 1823 . Spaces Moved 1667 | 39 785 843 . Core 16 | 16 . . . Treads 1192 | 23 785 384 . Legs . | . . . . Wheels 459 | . . 459 . Hover . | . . . . Flight . | . . . . Fastest Speed 50 | 50 160 130 . Average Speed 203 | 127 230 181 . Slowest Speed 250 | 250 240 240 . Overloaded Moves . | . . . . Propulsion Burnouts . | . . . . Robots Hopped . | . . . . Potential Cave-ins . | . . . . Cave-ins Triggered . | . . . . Exploration Rate (%) 39 | 4 97 54 1 Regions Visited 3 Branch Regions 1 Pre-discovered Areas 2 | . 1 1 . Known Exits Taken . | . . . . Unknown Exits Taken 3 | 1 1 1 . Scrap Searched 4 | . . 4 . Spaces Dug 4 | . . 4 . Terrain Destroyed 9 | . . 9 . Melee . | . . . . Projectile 9 | . . 9 . AOE . | . . . . Terrain Rammed . | . . . . Walls Destroyed . | . . . . Machines Disabled . | . . . . Actions | -11 -10 -10 -8 --------- Run | Yrd Mat Sub Mat Total 2041 | 46 975 1020 . Wait 131 | . 49 82 . Move 1664 | 38 784 842 . Hop . | . . . . Pick Up 35 | 2 23 10 . Fast Attach 9 | 6 3 . . Attach 7 | . 2 5 . Detach . | . . . . Swap 18 | . 5 13 . Drop 14 | . 8 6 . Fire 156 | . 94 62 . Melee . | . . . . Ram . | . . . . Kick . | . . . . Crush 7 | . 7 . . Escape Stasis . | . . . . Rewire . | . . . . Trap . | . . . . Miscellaneous . | . . . . Route ------- -11/Scrapyard -10/Materials (discovered 6 exits: [*Mat x3] / *Min x2 / [*Sub]) -10/Subcaves -8/Materials History --------- Turn | Location | Event 8 | -11/Scrapyard | Discovered new exit (range 16) 61 | -11/Scrapyard | Entered Materials 272 | -10/Materials | Discovered new exit (range 8) 307 | -10/Materials | Build established: Mutant 423 | -10/Materials | Discovered new exit (range 14) 1209 | -10/Materials | Identified exit to Mines 1405 | -10/Materials | Discovered new exit (range 13) 1553 | -10/Materials | Discovered new exit (range 16) 1991 | -10/Materials | Core integrity fell below 50% 2214 | -10/Materials | Discovered new exit (range 12) 2241 | -10/Materials | Entered Subcaves 2242 | -10/Subcaves | Approached by a straggling Scientist 2560 | -10/Subcaves | Learned 4 Materials zone layouts 2698 | -10/Subcaves | Shifting Twisted Machinery released Humpback 2702 | -10/Subcaves | Shifting Twisted Machinery released Mak. Light Armor Plating 2759 | -10/Subcaves | Shifting Twisted Machinery released Mak. Kinetic Plating 2849 | -10/Subcaves | A swath of the cavern ceiling suddenly collapsed 2993 | -10/Subcaves | Learned location of Zion (-6) 2993 | -10/Subcaves | Met a Zionite searching for "candidates" 3132 | -10/Subcaves | A swath of the cavern ceiling suddenly collapsed 3678 | -10/Subcaves | Ambushed by angry Subdweller bent on revenge 4020 | -10/Subcaves | Discovered new exit (range 10) 4064 | -10/Subcaves | Core integrity fell below 20% 4064 | -10/Subcaves | Entered Materials 4064 | -8/Materials | Evolved 4 slots: Propulsion x1, Utility x2, Weapon x1 4064 | -8/Materials | Self-destructed Last Messages --------------- 03964_ S-10 Pest destroyed. 03971_ Acquired 12 matter. 03972_ Acquired 2 matter. 03975_ Acquired 3 matter. 04020_ EXIT=FOUND 04044_ Searching scrap... 04044_ Found Sub. Optics. 04044_ Found Battle Cannon. 04044_ Found 67 Matter. 04045_ Acquired 34 matter. 04045_ Searching scrap... 04045_ Found Sub. Machine Gun. 04045_ Found Battle Cannon. 04045_ Found 30 Matter. 04046_ Searching scrap... 04046_ Found Shrapnel Trap. 04046_ Found 38 Matter. PARAMETERS=PROPULSION+1,UTILITY+2,WEAPON+1 LOCATION=UNKNOWN GOAL=ESCAPE Map ----- +----------------------------------------------------+ | | | | | | | | | | | | | | | | | | | | | | | | | | | | | | | | | | | | | | | ?????????????????????????????????????????????????? | | ?????????????????????????????????????????????????? | | ?????????????????????????????????????????????????? | | ?????????????????????????????????????????????????? | | ???????????????????????#####?????????????????????? | | ???????????????????##### #?????????????????????? | | ???????????????????#[[ @ #?????????????????????? | | ???????????????????#[[ #?????????????????????? | | ???????????????????#!! +?????????????????????? | | ???????????????????#!! #?????????????????????? | | ???????????????????#!! #?????????????????????? | | ???????????????????#!! #?????????????????????? | | ???????????????????##### #?????????????????????? | | ???????????????????????# #?????????????????????? | | ???????????????????????# #?????????????????????? | | ???????????????????????# #?????????????????????? | | ???????????????????????# #?????????????????????? | | ???????????????????????# #?????????????????????? | | ???????????????????????# #?????????????????????? | | ???????????????????????? ??????????????????????? | | ???????????????????????? ??????????????????????? | | ???????????????????????? ??????????????????????? | | ?????????????????????????????????????????????????? | | ?????????????????????????????????????????????????? | | ?????????????????????????????????????????????????? | | ?????????????????????????????????????????????????? | | ?????????????????????????????????????????????????? | | ?????????????????????????????????????????????????? | | ?????????????????????????????????????????????????? | | ?????????????????????????????????????????????????? | | ?????????????????????????????????????????????????? | +----------------------------------------------------+ Best States ------------- Heat Dissipation 39 Energy Generation 10 Energy Capacity 250 Matter Stores 300 Matter Capacity 300 Sight Range 16 Terrain Scan Density 10 Armor Coverage 100 Evasion (%) 50 Recoil Reduction 2 Item Schematics ----------------- None Robot Schematics ------------------ None Fabricated ------------ Nothing Repaired ---------- Nothing Alien Tech Used ----------------- None Achievements -------------- None Challenges ------------ None Game ------ Seed BlastMinesnifferPendant Manual? 0 Play Time 00:14:51 Cumulative 2161.7 hours Start 2025.05.18 @ 12:24:15 End 2025.05.18 @ 12:39:09 Sessions 1 Manual Loads 0 Difficulty Rogue Special Mode None Game No. 726 Rogue 726 Adventurer 0 Explorer 0 Win Type - Total 162 Types 31/15/65/7/1/2/39/1/1/0 Lore% 96 Gallery% 94 Achievement% 88 Wizard Run 0 Options --------- Layout 0 ASCII 0 Keyboard 0 Movement Numpad Keybinds 0 Fullscreen 2 Font 24/Smallcaps Map View 76x50 Zoom Use 0% Tactical HUD 1 Map Filters NONE Filters NONE Steam 1 RUN: 30d67dec-a79f-4d10-9d00-e1db1d9b8440